[Event "*** Titled Tuesday Blitz"]
[Site "Chess.com"]
[Date "2020.05.12"]
[Round "9"]
[White "Rodchenkov_Vitalij"]
[Black "barbara25"]
[Result "1/2-1/2"]
[WhiteElo "2423"]
[BlackElo "2304"]
[TimeControl "180+1"]
[EndTime "11:44:22 PDT"]
[Termination "Game drawn - insufficient material"]

1. d4 {[%clk 0:03:00.9]} 1... Nf6 {[%clk 0:02:59.2]} 2. c4 {[%clk 0:03:00.6]}
2... e6 {[%clk 0:02:59.4]} 3. g3 {[%clk 0:03:00.3]} 3... d5 {[%clk 0:02:57.5]}
4. Nf3 {[%clk 0:03:00.5]} 4... Be7 {[%clk 0:02:56.9]} 5. Bg2 {[%clk 0:02:58.9]}
5... O-O {[%clk 0:02:56.9]} 6. O-O {[%clk 0:02:58.6]} 6... c6 {[%clk 0:02:56.6]}
7. Qc2 {[%clk 0:02:57.3]} 7... b6 {[%clk 0:02:56.5]} 8. Nbd2 {[%clk 0:02:55.5]}
8... Bb7 {[%clk 0:02:56.4]} 9. e4 {[%clk 0:02:54.3]} 9... Nbd7 {[%clk
0:02:52.5]} 10. e5 {[%clk 0:02:52.7]} 10... Ne8 {[%clk 0:02:52.4]} 11. cxd5
{[%clk 0:02:52.3]} 11... cxd5 {[%clk 0:02:52.4]} 12. Re1 {[%clk 0:02:50.8]}
12... Rc8 {[%clk 0:02:52.3]} 13. Qb3 {[%clk 0:02:39.9]} 13... Qc7 {[%clk
0:02:49.4]} 14. Nf1 {[%clk 0:02:35.9]} 14... Qc2 {[%clk 0:02:47.4]} 15. Qe3
{[%clk 0:02:16.3]} 15... b5 {[%clk 0:02:35.7]} 16. Bd2 {[%clk 0:02:11.6]} 16...
Qc7 {[%clk 0:02:28.3]} 17. Rac1 {[%clk 0:02:07.4]} 17... Qb6 {[%clk 0:02:28.2]}
18. Rxc8 {[%clk 0:02:05.2]} 18... Bxc8 {[%clk 0:02:28.1]} 19. Qd3 {[%clk
0:01:55.9]} 19... a6 {[%clk 0:02:25.8]} 20. Ne3 {[%clk 0:01:53.6]} 20... a5
{[%clk 0:02:23.1]} 21. Ng4 {[%clk 0:01:49.3]} 21... b4 {[%clk 0:02:14.5]} 22.
Bg5 {[%clk 0:01:41.2]} 22... f6 {[%clk 0:02:03]} 23. exf6 {[%clk 0:01:39.7]}
23... Nexf6 {[%clk 0:02:00.7]} 24. Nge5 {[%clk 0:01:27.3]} 24... Bd8 {[%clk
0:01:31.3]} 25. Bh3 {[%clk 0:01:19.8]} 25... Nxe5 {[%clk 0:01:29]} 26. Nxe5
{[%clk 0:01:18.7]} 26... Ne4 {[%clk 0:01:22.1]} 27. Bxd8 {[%clk 0:01:18.1]}
27... Qxd8 {[%clk 0:01:20.6]} 28. f3 {[%clk 0:01:15.8]} 28... Nd6 {[%clk
0:01:14.8]} 29. Nc6 {[%clk 0:01:10]} 29... Qf6 {[%clk 0:01:02.9]} 30. Nxa5
{[%clk 0:01:07.4]} 30... Qxf3 {[%clk 0:00:33.7]} 31. Qxf3 {[%clk 0:01:06.6]}
31... Rxf3 {[%clk 0:00:33.2]} 32. Bxe6+ {[%clk 0:01:05.3]} 32... Bxe6 {[%clk
0:00:33.1]} 33. Rxe6 {[%clk 0:01:05.3]} 33... Ne4 {[%clk 0:00:33.6]} 34. Nc6
{[%clk 0:01:00.8]} 34... Rd3 {[%clk 0:00:32.1]} 35. Re8+ {[%clk 0:00:59.5]}
35... Kf7 {[%clk 0:00:31.1]} 36. Ne5+ {[%clk 0:00:59.1]} 36... Kxe8 {[%clk
0:00:30.6]} 37. Nxd3 {[%clk 0:00:59.8]} 37... b3 {[%clk 0:00:26.4]} 38. axb3
{[%clk 0:00:58.8]} 38... Kd7 {[%clk 0:00:25.9]} 39. Kg2 {[%clk 0:00:56.6]} 39...
Kc6 {[%clk 0:00:25.8]} 40. Kf3 {[%clk 0:00:55.7]} 40... Nd2+ {[%clk 0:00:25.3]}
41. Kf4 {[%clk 0:00:55.1]} 41... Nxb3 {[%clk 0:00:25.2]} 42. Ke5 {[%clk
0:00:55.4]} 42... Nd2 {[%clk 0:00:22.2]} 43. Nb4+ {[%clk 0:00:53.2]} 43... Kb5
{[%clk 0:00:22.1]} 44. Nxd5 {[%clk 0:00:52.7]} 44... Nf3+ {[%clk 0:00:20.4]} 45.
Ke6 {[%clk 0:00:50.8]} 45... Nxh2 {[%clk 0:00:20.3]} 46. Nc3+ {[%clk 0:00:49.6]}
46... Kc4 {[%clk 0:00:18.8]} 47. d5 {[%clk 0:00:49.1]} 47... Nf3 {[%clk
0:00:18.7]} 48. d6 {[%clk 0:00:48]} 48... Nd4+ {[%clk 0:00:18.6]} 49. Ke7 {[%clk
0:00:46.3]} 49... Nc6+ {[%clk 0:00:18.6]} 50. Ke8 {[%clk 0:00:44]} 50... g5
{[%clk 0:00:15.6]} 51. d7 {[%clk 0:00:43.3]} 51... h5 {[%clk 0:00:15.4]} 52. Ne4
{[%clk 0:00:35.6]} 52... h4 {[%clk 0:00:15]} 53. gxh4 {[%clk 0:00:31]} 53...
gxh4 {[%clk 0:00:15]} 54. Nd6+ {[%clk 0:00:31.2]} 54... Kd5 {[%clk 0:00:14.2]}
55. Nf5 {[%clk 0:00:29.1]} 55... h3 {[%clk 0:00:08.4]} 56. Ne7+ {[%clk
0:00:29.1]} 56... Kc5 {[%clk 0:00:07.4]} 57. Nxc6 {[%clk 0:00:28.3]} 57... h2
{[%clk 0:00:06.5]} 58. d8=Q {[%clk 0:00:25.7]} 58... h1=Q {[%clk 0:00:05.9]} 59.
Ne7 {[%clk 0:00:26.1]} 59... Qh8+ {[%clk 0:00:04.9]} 60. Kd7 {[%clk 0:00:26]}
60... Qxd8+ {[%clk 0:00:04.7]} 61. Kxd8 {[%clk 0:00:26.2]} 61... Kb4 {[%clk
0:00:05]} 62. Nd5+ {[%clk 0:00:19.1]} 62... Kb3 {[%clk 0:00:05.3]} 63. Kc7
{[%clk 0:00:19]} 63... Kxb2 {[%clk 0:00:06.2]} 1/2-1/2

[Event "*** Titled Tuesday Blitz"]
[Site "Chess.com"]
[Date "2020.05.12"]
[Round "9"]
[White "BvsN"]
[Black "SameerMujumdar"]
[Result "0-1"]
[WhiteElo "2342"]
[BlackElo "2196"]
[TimeControl "180+1"]
[EndTime "11:44:22 PDT"]
[Termination "SameerMujumdar won by checkmate"]

1. d4 {[%clk 0:03:00.9]} 1... Nf6 {[%clk 0:02:57.5]} 2. Nf3 {[%clk 0:03:01.2]}
2... c5 {[%clk 0:02:57]} 3. d5 {[%clk 0:03:01.2]} 3... e6 {[%clk 0:02:55.6]} 4.
Nc3 {[%clk 0:03:01.5]} 4... b5 {[%clk 0:02:53.7]} 5. dxe6 {[%clk 0:02:36.1]}
5... fxe6 {[%clk 0:02:47.2]} 6. Nxb5 {[%clk 0:02:33.6]} 6... d5 {[%clk
0:02:47.5]} 7. e3 {[%clk 0:02:31.5]} 7... Be7 {[%clk 0:02:46.6]} 8. Be2 {[%clk
0:02:31.7]} 8... O-O {[%clk 0:02:46.1]} 9. O-O {[%clk 0:02:31.9]} 9... Nc6
{[%clk 0:02:43.6]} 10. c4 {[%clk 0:02:31.8]} 10... a6 {[%clk 0:02:33.9]} 11. Nc3
{[%clk 0:02:28.2]} 11... d4 {[%clk 0:02:34]} 12. Na4 {[%clk 0:02:23.6]} 12... e5
{[%clk 0:02:31.8]} 13. exd4 {[%clk 0:02:23.9]} 13... cxd4 {[%clk 0:02:30.6]} 14.
Re1 {[%clk 0:02:14.9]} 14... e4 {[%clk 0:02:27.4]} 15. Nd2 {[%clk 0:02:15.3]}
15... d3 {[%clk 0:02:26.4]} 16. Bf1 {[%clk 0:02:15.2]} 16... Bf5 {[%clk
0:02:25.7]} 17. Nc3 {[%clk 0:02:11.6]} 17... Bc5 {[%clk 0:02:21.6]} 18. Ndxe4
{[%clk 0:02:01.3]} 18... Nxe4 {[%clk 0:02:19.4]} 19. Rxe4 {[%clk 0:02:00.4]}
19... Bxf2+ {[%clk 0:02:14.2]} 20. Kh1 {[%clk 0:01:56.1]} 20... Bxe4 {[%clk
0:02:13]} 21. Nxe4 {[%clk 0:01:56.4]} 21... Qd4 {[%clk 0:02:05]} 22. Qxd3 {[%clk
0:01:49]} 22... Qxd3 {[%clk 0:01:51]} 23. Bxd3 {[%clk 0:01:48.9]} 23... Rad8
{[%clk 0:01:51.5]} 24. Bc2 {[%clk 0:01:46.3]} 24... Be1 {[%clk 0:01:45.6]} 25.
g3 {[%clk 0:01:40.1]} 25... Nb4 {[%clk 0:01:43.3]} 26. Bb3 {[%clk 0:01:35.3]}
26... Rde8 {[%clk 0:01:35.3]} 27. Nd6 {[%clk 0:01:30.8]} 27... Re2 {[%clk
0:01:34.1]} 28. c5+ {[%clk 0:01:27.7]} 28... Kh8 {[%clk 0:01:26.7]} 29. Bf4
{[%clk 0:01:19.2]} 29... h6 {[%clk 0:01:21]} 30. Bc4 {[%clk 0:01:12.2]} 30...
Re7 {[%clk 0:01:17.2]} 31. a3 {[%clk 0:01:08.9]} 31... Nc2 {[%clk 0:01:13.4]}
32. Rc1 {[%clk 0:01:08.9]} 32... Nd4 {[%clk 0:01:12.1]} 33. h4 {[%clk 0:01:05]}
33... g5 {[%clk 0:01:01.7]} 34. hxg5 {[%clk 0:01:04]} 34... hxg5 {[%clk
0:01:01.4]} 35. Bxg5 {[%clk 0:01:02.9]} 35... Rg7 {[%clk 0:01:01.7]} 36. Rxe1
{[%clk 0:00:52.1]} 36... Rxg5 {[%clk 0:00:59.7]} 37. Nf7+ {[%clk 0:00:50.4]}
37... Rxf7 {[%clk 0:00:59.8]} 38. Bxf7 {[%clk 0:00:50.6]} 38... Rxc5 {[%clk
0:01:00.7]} 39. Re4 {[%clk 0:00:38.4]} 39... Nf3 {[%clk 0:00:55.1]} 40. Kg2
{[%clk 0:00:33.9]} 40... Ng5 {[%clk 0:00:54]} 41. Re8+ {[%clk 0:00:33.5]} 41...
Kg7 {[%clk 0:00:54.9]} 42. Bb3 {[%clk 0:00:26.1]} 42... Rc1 {[%clk 0:00:47.6]}
43. Re3 {[%clk 0:00:21.9]} 43... Rb1 {[%clk 0:00:45.7]} 44. Re2 {[%clk
0:00:22.1]} 44... Rc1 {[%clk 0:00:46.1]} 45. Rc2 {[%clk 0:00:21.3]} 45... Re1
{[%clk 0:00:45.4]} 46. Kf2 {[%clk 0:00:19.1]} 46... Re7 {[%clk 0:00:42.9]} 47.
Rc6 {[%clk 0:00:18.1]} 47... Ne4+ {[%clk 0:00:40]} 48. Kg2 {[%clk 0:00:18.3]}
48... Nd2 {[%clk 0:00:39.2]} 49. Bd1 {[%clk 0:00:14.7]} 49... Re1 {[%clk
0:00:38.1]} 50. Bf3 {[%clk 0:00:12.7]} 50... Re3 {[%clk 0:00:35.8]} 51. Bd5
{[%clk 0:00:09.9]} 51... Rd3 {[%clk 0:00:35.4]} 52. Be6 {[%clk 0:00:07.7]} 52...
a5 {[%clk 0:00:32.8]} 53. b4 {[%clk 0:00:07.6]} 53... Rxa3 {[%clk 0:00:31.6]}
54. bxa5 {[%clk 0:00:07.3]} 54... Rxa5 {[%clk 0:00:31.2]} 55. Rc7+ {[%clk
0:00:07.3]} 55... Kf6 {[%clk 0:00:30.7]} 56. Bg4 {[%clk 0:00:07.3]} 56... Ne4
{[%clk 0:00:27.9]} 57. Rc6+ {[%clk 0:00:05.3]} 57... Kg5 {[%clk 0:00:22.6]} 58.
Bf3 {[%clk 0:00:04.4]} 58... Ra2+ {[%clk 0:00:21.8]} 59. Kg1 {[%clk 0:00:04.8]}
59... Nxg3 {[%clk 0:00:21.3]} 60. Rc5+ {[%clk 0:00:05.2]} 60... Kf4 {[%clk
0:00:21]} 61. Bg2 {[%clk 0:00:04.7]} 61... Ne2+ {[%clk 0:00:18.2]} 62. Kh2
{[%clk 0:00:04.6]} 62... Ra7 {[%clk 0:00:17.2]} 63. Rc4+ {[%clk 0:00:04.7]}
63... Ke3 {[%clk 0:00:17.2]} 64. Bh3 {[%clk 0:00:04.5]} 64... Rh7 {[%clk
0:00:16.4]} 65. Rc8 {[%clk 0:00:04.1]} 65... Nf4 {[%clk 0:00:15.6]} 66. Re8+
{[%clk 0:00:04.3]} 66... Kf2 {[%clk 0:00:15.7]} 67. Rf8 {[%clk 0:00:01.6]} 67...
Rxh3# {[%clk 0:00:14.7]} 0-1

[Event "*** Titled Tuesday Blitz"]
[Site "Chess.com"]
[Date "2020.05.12"]
[Round "9"]
[White "Shuvalov"]
[Black "checkmatequen"]
[Result "1-0"]
[WhiteElo "2451"]
[BlackElo "2269"]
[TimeControl "180+1"]
[EndTime "11:44:23 PDT"]
[Termination "Shuvalov won by resignation"]

1. Nf3 {[%clk 0:03:00.9]} 1... c5 {[%clk 0:02:59.6]} 2. c4 {[%clk 0:02:55.4]}
2... Nc6 {[%clk 0:02:59.9]} 3. d4 {[%clk 0:02:55.2]} 3... cxd4 {[%clk
0:02:59.2]} 4. Nxd4 {[%clk 0:02:56.1]} 4... Nf6 {[%clk 0:02:58.7]} 5. Nc3 {[%clk
0:02:55.6]} 5... e6 {[%clk 0:02:58.8]} 6. a3 {[%clk 0:02:54.9]} 6... a6 {[%clk
0:02:59.1]} 7. e4 {[%clk 0:02:53.5]} 7... Qc7 {[%clk 0:02:58.9]} 8. Be3 {[%clk
0:02:52.3]} 8... Be7 {[%clk 0:02:55.1]} 9. Be2 {[%clk 0:02:52]} 9... Ne5 {[%clk
0:02:54.2]} 10. Rc1 {[%clk 0:02:45.6]} 10... b6 {[%clk 0:02:42.5]} 11. f4 {[%clk
0:02:40.2]} 11... Ng6 {[%clk 0:02:33.4]} 12. e5 {[%clk 0:02:37]} 12... Ng8
{[%clk 0:02:32.8]} 13. Ne4 {[%clk 0:02:21.7]} 13... Bb7 {[%clk 0:02:31.3]} 14.
Bf3 {[%clk 0:02:21.4]} 14... Nh4 {[%clk 0:02:25.3]} 15. O-O {[%clk 0:02:03.6]}
15... Nxf3+ {[%clk 0:02:22.4]} 16. Qxf3 {[%clk 0:02:04.5]} 16... Nh6 {[%clk
0:02:21.9]} 17. Rfe1 {[%clk 0:01:44.7]} 17... Nf5 {[%clk 0:02:20]} 18. Bf2
{[%clk 0:01:42.2]} 18... Bc5 {[%clk 0:02:16.9]} 19. Qd3 {[%clk 0:01:34.9]} 19...
Nxd4 {[%clk 0:02:07.2]} 20. Bxd4 {[%clk 0:01:35.8]} 20... Bxe4 {[%clk
0:02:07.2]} 21. Qxe4 {[%clk 0:01:35]} 21... Rd8 {[%clk 0:02:07.6]} 22. Red1
{[%clk 0:01:32.4]} 22... d6 {[%clk 0:02:02.8]} 23. b4 {[%clk 0:01:23.5]} 23...
Bxd4+ {[%clk 0:01:52.2]} 24. Qxd4 {[%clk 0:01:24.4]} 24... dxe5 {[%clk
0:01:40.4]} 25. Qxd8+ {[%clk 0:01:24.1]} 25... Qxd8 {[%clk 0:01:41.3]} 26. Rxd8+
{[%clk 0:01:24.3]} 26... Kxd8 {[%clk 0:01:42.2]} 27. fxe5 {[%clk 0:01:25.1]}
27... Kc7 {[%clk 0:01:33.7]} 28. Kf2 {[%clk 0:01:25.2]} 28... Rd8 {[%clk
0:01:33.6]} 29. Ke3 {[%clk 0:01:25.5]} 29... Kc6 {[%clk 0:01:28]} 30. Rf1 {[%clk
0:01:16.1]} 30... Rd7 {[%clk 0:01:27.5]} 31. g4 {[%clk 0:01:12]} 31... a5 {[%clk
0:01:20.2]} 32. g5 {[%clk 0:01:10.6]} 32... axb4 {[%clk 0:01:16.8]} 33. axb4
{[%clk 0:01:11.5]} 33... Ra7 {[%clk 0:01:15.4]} 34. Kd4 {[%clk 0:01:07.7]} 34...
Rd7+ {[%clk 0:01:11.4]} 35. Ke4 {[%clk 0:01:07.5]} 35... Kc7 {[%clk 0:01:03]}
36. h4 {[%clk 0:01:06.1]} 36... Kd8 {[%clk 0:01:03.1]} 37. Rf3 {[%clk
0:01:04.4]} 37... Ke7 {[%clk 0:01:02.7]} 38. Rd3 {[%clk 0:01:04.5]} 38... Ra7
{[%clk 0:01:02.6]} 39. Rd6 {[%clk 0:01:03.3]} 39... Rb7 {[%clk 0:00:55.8]} 40.
b5 {[%clk 0:01:00.5]} 40... f6 {[%clk 0:00:53.1]} 41. gxf6+ {[%clk 0:00:53.4]}
41... gxf6 {[%clk 0:00:54]} 42. Rc6 {[%clk 0:00:51.9]} 42... f5+ {[%clk
0:00:50.7]} 43. Kf4 {[%clk 0:00:52.1]} 43... Kd7 {[%clk 0:00:50.3]} 44. Kg5
{[%clk 0:00:52]} 44... Ke7 {[%clk 0:00:48.3]} 45. h5 {[%clk 0:00:49.4]} 45...
h6+ {[%clk 0:00:46.9]} 46. Kxh6 {[%clk 0:00:31.7]} 46... f4 {[%clk 0:00:47]} 47.
Rd6 {[%clk 0:00:31.8]} 47... Rd7 {[%clk 0:00:43.4]} 48. Rxb6 {[%clk 0:00:24.8]}
48... f3 {[%clk 0:00:41.4]} 49. Ra6 {[%clk 0:00:24.8]} 49... Rc7 {[%clk
0:00:33.7]} 50. Ra3 {[%clk 0:00:21]} 50... Rxc4 {[%clk 0:00:28.8]} 51. Rxf3
{[%clk 0:00:20.9]} 51... Rb4 {[%clk 0:00:24.4]} 52. Kg7 {[%clk 0:00:17.6]} 52...
Rg4+ {[%clk 0:00:23.2]} 53. Kh7 {[%clk 0:00:17.1]} 53... Rb4 {[%clk 0:00:23.7]}
54. h6 {[%clk 0:00:15.9]} 54... Rxb5 {[%clk 0:00:24.1]} 55. Kg7 {[%clk
0:00:14.6]} 55... Rxe5 {[%clk 0:00:24.4]} 56. Rf7+ {[%clk 0:00:13.7]} 56... Kd6
{[%clk 0:00:22.4]} 57. h7 {[%clk 0:00:13.5]} 57... Rg5+ {[%clk 0:00:16.7]} 58.
Kh6 {[%clk 0:00:08.4]} 58... Rg1 {[%clk 0:00:16.8]} 59. h8=Q {[%clk 0:00:07.9]}
59... Rh1+ {[%clk 0:00:17.1]} 60. Kg7 {[%clk 0:00:08.6]} 60... Rxh8 {[%clk
0:00:17.6]} 61. Kxh8 {[%clk 0:00:09.5]} 61... e5 {[%clk 0:00:17.9]} 62. Kg7
{[%clk 0:00:09.8]} 62... e4 {[%clk 0:00:17.4]} 63. Kf6 {[%clk 0:00:08.8]} 63...
Kd5 {[%clk 0:00:15.9]} 64. Rd7+ {[%clk 0:00:08.1]} 64... Kc6 {[%clk 0:00:14]}
65. Re7 {[%clk 0:00:07.8]} 65... Kd5 {[%clk 0:00:13.3]} 66. Kf5 {[%clk 0:00:08]}
66... e3 {[%clk 0:00:13.1]} 67. Rxe3 {[%clk 0:00:07.9]} 1-0

[Event "*** Titled Tuesday Blitz"]
[Site "Chess.com"]
[Date "2020.05.12"]
[Round "9"]
[White "GukeshDommaraju"]
[Black "LLRChess"]
[Result "0-1"]
[WhiteElo "2716"]
[BlackElo "2576"]
[TimeControl "180+1"]
[EndTime "11:44:25 PDT"]
[Termination "LLRChess won on time"]

1. e4 {[%clk 0:03:00.9]} 1... d6 {[%clk 0:03:00]} 2. d4 {[%clk 0:03:00.7]} 2...
Nf6 {[%clk 0:03:00.4]} 3. Nc3 {[%clk 0:03:01]} 3... g6 {[%clk 0:03:00.5]} 4. Be3
{[%clk 0:03:01.1]} 4... c6 {[%clk 0:02:57.8]} 5. Qd2 {[%clk 0:03:00.1]} 5... b5
{[%clk 0:02:57.2]} 6. f3 {[%clk 0:03:00.5]} 6... Nbd7 {[%clk 0:02:56.5]} 7. h4
{[%clk 0:02:57.9]} 7... Nb6 {[%clk 0:02:55.1]} 8. Bh6 {[%clk 0:02:53]} 8... Bxh6
{[%clk 0:02:52.2]} 9. Qxh6 {[%clk 0:02:52.6]} 9... b4 {[%clk 0:02:49.3]} 10. Nd1
{[%clk 0:02:49.4]} 10... a5 {[%clk 0:02:45.5]} 11. Qd2 {[%clk 0:02:30.6]} 11...
Be6 {[%clk 0:02:43.9]} 12. Ne3 {[%clk 0:02:30.1]} 12... h5 {[%clk 0:02:39.2]}
13. Bd3 {[%clk 0:02:27.3]} 13... c5 {[%clk 0:02:21.1]} 14. d5 {[%clk 0:02:23.8]}
14... Bc8 {[%clk 0:02:14.2]} 15. Nh3 {[%clk 0:02:21.7]} 15... Qc7 {[%clk
0:02:09.7]} 16. Qe2 {[%clk 0:02:21]} 16... Nfd7 {[%clk 0:02:07]} 17. Ng5 {[%clk
0:02:15.4]} 17... Ne5 {[%clk 0:02:06.8]} 18. Bb5+ {[%clk 0:02:09.3]} 18... Kf8
{[%clk 0:02:00]} 19. f4 {[%clk 0:02:04.1]} 19... Ng4 {[%clk 0:01:56.8]} 20. O-O
{[%clk 0:01:55.3]} 20... f6 {[%clk 0:01:46.1]} 21. Ne6+ {[%clk 0:01:34.5]} 21...
Bxe6 {[%clk 0:01:46]} 22. dxe6 {[%clk 0:01:34.8]} 22... Nxe3 {[%clk 0:01:40.4]}
23. Qxe3 {[%clk 0:01:33.9]} 23... Kg7 {[%clk 0:01:18.6]} 24. f5 {[%clk
0:01:29.1]} 24... d5 {[%clk 0:01:13.5]} 25. exd5 {[%clk 0:01:18.7]} 25... Nxd5
{[%clk 0:01:11.9]} 26. Qf3 {[%clk 0:01:18]} 26... Qe5 {[%clk 0:01:07.3]} 27.
Rfe1 {[%clk 0:01:01.4]} 27... Qxf5 {[%clk 0:00:57.1]} 28. Qxf5 {[%clk
0:00:50.9]} 28... gxf5 {[%clk 0:00:58]} 29. Rad1 {[%clk 0:00:51]} 29... Rad8
{[%clk 0:00:55]} 30. Bd7 {[%clk 0:00:50.1]} 30... Nb6 {[%clk 0:00:43]} 31. Bb5
{[%clk 0:00:39.9]} 31... f4 {[%clk 0:00:31]} 32. Kf2 {[%clk 0:00:36.1]} 32...
Nd5 {[%clk 0:00:30.5]} 33. Bd7 {[%clk 0:00:32.8]} 33... Ne3 {[%clk 0:00:30.5]}
34. Rd2 {[%clk 0:00:25.5]} 34... f5 {[%clk 0:00:23.9]} 35. Kf3 {[%clk
0:00:23.3]} 35... Kf6 {[%clk 0:00:21.7]} 36. Kxf4 {[%clk 0:00:23.1]} 36... Ng4
{[%clk 0:00:20.4]} 37. Rd5 {[%clk 0:00:22.2]} 37... Nh6 {[%clk 0:00:18.2]} 38.
Rxc5 {[%clk 0:00:19.2]} 38... Rhg8 {[%clk 0:00:18.6]} 39. Kf3 {[%clk 0:00:19.3]}
39... Rg4 {[%clk 0:00:18.5]} 40. Rxa5 {[%clk 0:00:19.5]} 40... Rxh4 {[%clk
0:00:18.3]} 41. Rb5 {[%clk 0:00:12.6]} 41... Rg4 {[%clk 0:00:16.2]} 42. Rh1
{[%clk 0:00:12.5]} 42... h4 {[%clk 0:00:16.2]} 43. Rh3 {[%clk 0:00:07]} 43...
Rdg8 {[%clk 0:00:15.4]} 44. a3 {[%clk 0:00:03.2]} 44... Rg3+ {[%clk 0:00:15.1]}
45. Rxg3 {[%clk 0:00:03.1]} 45... Rxg3+ {[%clk 0:00:16]} 46. Kf2 {[%clk
0:00:03.8]} 46... bxa3 {[%clk 0:00:16.1]} 47. bxa3 {[%clk 0:00:04.7]} 47... Ng4+
{[%clk 0:00:15.3]} 48. Kf1 {[%clk 0:00:03.6]} 48... Rxa3 {[%clk 0:00:15.8]} 49.
c4 {[%clk 0:00:04]} 49... Rc3 {[%clk 0:00:14.8]} 50. c5 {[%clk 0:00:03.5]} 50...
Ne3+ {[%clk 0:00:15]} 51. Ke2 {[%clk 0:00:03.8]} 51... Nxg2 {[%clk 0:00:14.6]}
52. c6 {[%clk 0:00:03.7]} 52... h3 {[%clk 0:00:14.4]} 53. Kf2 {[%clk 0:00:03.9]}
53... Nf4 {[%clk 0:00:13.3]} 54. Rb1 {[%clk 0:00:02.4]} 54... h2 {[%clk
0:00:12.1]} 55. Rh1 {[%clk 0:00:02.4]} 55... Rc2+ {[%clk 0:00:10.9]} 56. Kg3
{[%clk 0:00:02.6]} 56... Ne2+ {[%clk 0:00:11.3]} 57. Kh3 {[%clk 0:00:02.6]}
57... Nd4 {[%clk 0:00:11.2]} 58. Rxh2 {[%clk 0:00:02.7]} 58... Rc3+ {[%clk
0:00:10.9]} 59. Kh4 {[%clk 0:00:02.5]} 59... Nf3+ {[%clk 0:00:10]} 0-1

[Event "*** Titled Tuesday Blitz"]
[Site "Chess.com"]
[Date "2020.05.12"]
[Round "9"]
[White "Tashik"]
[Black "Xeniya2005"]
[Result "1-0"]
[WhiteElo "2455"]
[BlackElo "2282"]
[TimeControl "180+1"]
[EndTime "11:44:27 PDT"]
[Termination "Tashik won by resignation"]

1. c4 {[%clk 0:03:00.9]} 1... e5 {[%clk 0:02:59.7]} 2. Nc3 {[%clk 0:03:00.4]}
2... Bb4 {[%clk 0:02:59.3]} 3. Nd5 {[%clk 0:02:59.4]} 3... Bc5 {[%clk 0:02:52]}
4. e3 {[%clk 0:02:54.8]} 4... Nc6 {[%clk 0:02:45.2]} 5. Nf3 {[%clk 0:02:51.1]}
5... d6 {[%clk 0:02:36.4]} 6. d4 {[%clk 0:02:50.1]} 6... exd4 {[%clk 0:02:35.8]}
7. exd4 {[%clk 0:02:50.2]} 7... Bb4+ {[%clk 0:02:31.5]} 8. Nxb4 {[%clk
0:02:47.9]} 8... Nxb4 {[%clk 0:02:32.4]} 9. Qa4+ {[%clk 0:02:47.4]} 9... Nc6
{[%clk 0:02:27.3]} 10. d5 {[%clk 0:02:47.6]} 10... Qe7+ {[%clk 0:02:22]} 11. Be3
{[%clk 0:02:45.1]} 11... Bd7 {[%clk 0:02:21.4]} 12. dxc6 {[%clk 0:02:44.2]}
12... Bxc6 {[%clk 0:02:22.3]} 13. Qb3 {[%clk 0:02:40.9]} 13... Nf6 {[%clk
0:02:21.4]} 14. Be2 {[%clk 0:02:41]} 14... O-O {[%clk 0:02:20.6]} 15. O-O {[%clk
0:02:40.5]} 15... Rae8 {[%clk 0:02:15]} 16. Rfe1 {[%clk 0:02:39.6]} 16... Qd7
{[%clk 0:02:14.1]} 17. Nd4 {[%clk 0:02:36]} 17... Be4 {[%clk 0:02:13.1]} 18. f3
{[%clk 0:02:19.4]} 18... Bg6 {[%clk 0:02:05.3]} 19. Bf2 {[%clk 0:02:18.7]} 19...
a6 {[%clk 0:02:03.1]} 20. Bd3 {[%clk 0:02:13]} 20... Nh5 {[%clk 0:01:51.6]} 21.
Bxg6 {[%clk 0:02:04.3]} 21... hxg6 {[%clk 0:01:52.5]} 22. Qxb7 {[%clk
0:02:01.6]} 22... Nf4 {[%clk 0:01:48.6]} 23. Qc6 {[%clk 0:01:54.5]} 23... Qd8
{[%clk 0:01:46.9]} 24. Rxe8 {[%clk 0:01:43.7]} 24... Rxe8 {[%clk 0:01:46.1]} 25.
Re1 {[%clk 0:01:44.1]} 25... Rxe1+ {[%clk 0:01:37.9]} 26. Bxe1 {[%clk 0:01:45]}
26... Qg5 {[%clk 0:01:37.3]} 27. Bg3 {[%clk 0:01:34.3]} 27... Qe5 {[%clk
0:01:36.2]} 28. Nc2 {[%clk 0:00:49.1]} 28... Ne2+ {[%clk 0:01:20.7]} 29. Kf2
{[%clk 0:00:46.2]} 29... Nxg3 {[%clk 0:01:21]} 30. hxg3 {[%clk 0:00:44.4]} 30...
Qxb2 {[%clk 0:01:20.7]} 31. Qa4 {[%clk 0:00:32.4]} 31... c6 {[%clk 0:01:14]} 32.
g4 {[%clk 0:00:31.3]} 32... d5 {[%clk 0:01:12.6]} 33. cxd5 {[%clk 0:00:27.6]}
33... cxd5 {[%clk 0:01:12.3]} 34. Qb3 {[%clk 0:00:28.2]} 34... Qe5 {[%clk
0:01:08]} 35. Qb4 {[%clk 0:00:17.7]} 35... Qc7 {[%clk 0:00:55.3]} 36. Nd4 {[%clk
0:00:15.4]} 36... Kh7 {[%clk 0:00:52.3]} 37. a4 {[%clk 0:00:15.4]} 37... a5
{[%clk 0:00:46.4]} 38. Qb3 {[%clk 0:00:13.6]} 38... Qc5 {[%clk 0:00:43.7]} 39.
Ke3 {[%clk 0:00:12.4]} 39... f5 {[%clk 0:00:39.4]} 40. gxf5 {[%clk 0:00:12.4]}
40... gxf5 {[%clk 0:00:40.3]} 41. Qc2 {[%clk 0:00:11.8]} 41... Qe7+ {[%clk
0:00:38.4]} 42. Kf2 {[%clk 0:00:11.5]} 42... g6 {[%clk 0:00:38.2]} 43. g4 {[%clk
0:00:10.7]} 43... Qh4+ {[%clk 0:00:33.7]} 44. Ke3 {[%clk 0:00:08.6]} 44... fxg4
{[%clk 0:00:31.5]} 45. Qc7+ {[%clk 0:00:08.2]} 45... Kh8 {[%clk 0:00:27.1]} 46.
Qc8+ {[%clk 0:00:08]} 46... Kg7 {[%clk 0:00:26.4]} 47. Qxg4 {[%clk 0:00:08.3]}
47... Qe7+ {[%clk 0:00:23.6]} 48. Kf2 {[%clk 0:00:08.4]} 48... Qb4 {[%clk
0:00:21]} 49. Kg3 {[%clk 0:00:08.5]} 49... Qd6+ {[%clk 0:00:20]} 50. Kg2 {[%clk
0:00:08.5]} 50... Qb4 {[%clk 0:00:19.7]} 51. Ne6+ {[%clk 0:00:08.5]} 51... Kf6
{[%clk 0:00:19.7]} 52. Qxb4 {[%clk 0:00:08.9]} 52... axb4 {[%clk 0:00:20]} 53.
Nc5 {[%clk 0:00:09.1]} 53... Ke5 {[%clk 0:00:19.9]} 54. a5 {[%clk 0:00:07.2]}
54... Kd6 {[%clk 0:00:19.9]} 55. Nb3 {[%clk 0:00:07.3]} 55... Kc6 {[%clk
0:00:19.5]} 56. Kf2 {[%clk 0:00:07.8]} 56... Kb5 {[%clk 0:00:18.6]} 57. Ke3
{[%clk 0:00:08.2]} 57... g5 {[%clk 0:00:18]} 58. Kd3 {[%clk 0:00:07.8]} 58...
Ka4 {[%clk 0:00:16.6]} 59. Kc2 {[%clk 0:00:06.6]} 59... Kb5 {[%clk 0:00:16.3]}
60. Kd3 {[%clk 0:00:06.5]} 60... Ka4 {[%clk 0:00:16.1]} 61. a6 {[%clk
0:00:06.9]} 61... Kxb3 {[%clk 0:00:16.8]} 62. a7 {[%clk 0:00:07.5]} 62... Kb2
{[%clk 0:00:17.3]} 63. a8=Q {[%clk 0:00:07.8]} 63... b3 {[%clk 0:00:18.2]} 64.
Qa4 {[%clk 0:00:07.5]} 64... Kc1 {[%clk 0:00:17.8]} 65. Qxb3 {[%clk 0:00:07.3]}
1-0